Workbook

Sheet Sheet1
A1: 濉溪县2021年公开招聘非在编中小学教学人员笔试成绩
A2: 岗位代码 | B2: 岗位名称 | C2: 招聘单位 | D2: 准考证号 | E2: 职测成绩 | F2: 教综客观成绩 | G2: 教综主观成绩 | H2: 总分
A3: ="101" -> 101 | B3: 语文(城区1) | C3: 小学 | D3: ="2022024321" -> 2022024321 | E3: 66.6 | F3: 48.6 | G3: 29 | H3: =E3+F3+G3 -> 144.2
A4: 101 | B4: 语文(城区1) | C4: 小学 | D4: ="2022023830" -> 2022023830 | E4: 63.5 | F4: 49.1 | G4: 29 | H4: 141.6
A5: 101 | B5: 语文(城区1) | C5: 小学 | D5: ="2022024316" -> 2022024316 | E5: 74.6 | F5: 39.9 | G5: 26 | H5: 140.5
A6: 101 | B6: 语文(城区1) | C6: 小学 | D6: ="2022023010" -> 2022023010 | E6: 66.8 | F6: 42.8 | G6: 30 | H6: 139.6
A7: 101 | B7: 语文(城区1) | C7: 小学 | D7: ="2022023815" -> 2022023815 | E7: 65.9 | F7: 43.5 | G7: 30 | H7: 139.4
A8: 101 | B8: 语文(城区1) | C8: 小学 | D8: ="2022020306" -> 2022020306 | E8: 64.4 | F8: 45.2 | G8: 29 | H8: 138.6
A9: 101 | B9: 语文(城区1) | C9: 小学 | D9: ="2022022011" -> 2022022011 | E9: 65.2 | F9: 43.1 | G9: 30 | H9: 138.3
A10: 101 | B10: 语文(城区1) | C10: 小学 | D10: ="2022020225" -> 2022020225 | E10: 62.6 | F10: 44.5 | G10: 30 | H10: 137.1
A11: 101 | B11: 语文(城区1) | C11: 小学 | D11: ="2022020303" -> 2022020303 | E11: 64.3 | F11: 44 | G11: 28 | H11: 136.3
A12: 101 | B12: 语文(城区1) | C12: 小学 | D12: ="2022020326" -> 2022020326 | E12: 56.6 | F12: 49.5 | G12: 30 | H12: 136.1
A13: 101 | B13: 语文(城区1) | C13: 小学 | D13: ="2022022313" -> 2022022313 | E13: 67.4 | F13: 38.1 | G13: 30 | H13: 135.5
A14: 101 | B14: 语文(城区1) | C14: 小学 | D14: ="2022022502" -> 2022022502 | E14: 60.4 | F14: 44.6 | G14: 30 | H14: 135
A15: 101 | B15: 语文(城区1) | C15: 小学 | D15: ="2022021623" -> 2022021623 | E15: 62.2 | F15: 41.8 | G15: 30 | H15: 134
A16: 101 | B16: 语文(城区1) | C16: 小学 | D16: ="2022022111" -> 2022022111 | E16: 61 | F16: 43 | G16: 30 | H16: 134
A17: 101 | B17: 语文(城区1) | C17: 小学 | D17: ="2022020922" -> 2022020922 | E17: 58.2 | F17: 45.1 | G17: 30 | H17: 133.3
A18: 101 | B18: 语文(城区1) | C18: 小学 | D18: ="2022022914" -> 2022022914 | E18: 56.3 | F18: 46.8 | G18: 30 | H18: 133.1
A19: 101 | B19: 语文(城区1) | C19: 小学 | D19: ="2022024003" -> 2022024003 | E19: 63.7 | F19: 41.4 | G19: 28 | H19: 133.1
A20: 101 | B20: 语文(城区1) | C20: 小学 | D20: ="2022021202" -> 2022021202 | E20: 62.3 | F20: 43.6 | G20: 27 | H20: 132.9
A21: 101 | B21: 语文(城区1) | C21: 小学 | D21: ="2022023303" -> 2022023303 | E21: 66.3 | F21: 36 | G21: 30 | H21: 132.3
A22: 101 | B22: 语文(城区1) | C22: 小学 | D22: ="2022021308" -> 2022021308 | E22: 57.6 | F22: 44.5 | G22: 30 | H22: 132.1
A23: 101 | B23: 语文(城区1) | C23: 小学 | D23: ="2022020611" -> 2022020611 | E23: 60.6 | F23: 41.3 | G23: 30 | H23: 131.9
A24: 101 | B24: 语文(城区1) | C24: 小学 | D24: ="2022021426" -> 2022021426 | E24: 61.8 | F24: 44.1 | G24: 26 | H24: 131.9
A25: 101 | B25: 语文(城区1) | C25: 小学 | D25: ="2022023128" -> 2022023128 | E25: 63.8 | F25: 42.9 | G25: 25 | H25: 131.7
A26: 101 | B26: 语文(城区1) | C26: 小学 | D26: ="2022020706" -> 2022020706 | E26: 62.4 | F26: 40 | G26: 29 | H26: 131.4
A27: 101 | B27: 语文(城区1) | C27: 小学 | D27: ="2022020510" -> 2022020510 | E27: 56.5 | F27: 44.5 | G27: 30 | H27: 131
A28: 101 | B28: 语文(城区1) | C28: 小学 | D28: ="2022020517" -> 2022020517 | E28: 64.1 | F28: 36.6 | G28: 30 | H28: 130.7
A29: 101 | B29: 语文(城区1) | C29: 小学 | D29: ="2022023507" -> 2022023507 | E29: 60.7 | F29: 43 | G29: 27 | H29: 130.7
A30: 101 | B30: 语文(城区1) | C30: 小学 | D30: ="2022021524" -> 2022021524 | E30: 57.7 | F30: 44.6 | G30: 28 | H30: 130.3
A31: 101 | B31: 语文(城区1) | C31: 小学 | D31: ="2022020708" -> 2022020708 | E31: 62.1 | F31: 38.8 | G31: 29 | H31: 129.9
A32: 101 | B32: 语文(城区1) | C32: 小学 | D32: ="2022020125" -> 2022020125 | E32: 53.2 | F32: 46.6 | G32: 30 | H32: 129.8
A33: 101 | B33: 语文(城区1) | C33: 小学 | D33: ="2022020304" -> 2022020304 | E33: 60.5 | F33: 42.8 | G33: 26 | H33: 129.3
A34: 101 | B34: 语文(城区1) | C34: 小学 | D34: ="2022024102" -> 2022024102 | E34: 59.8 | F34: 38.3 | G34: 30 | H34: 128.1
A35: ="101" -> 101 | B35: 语文(城区1) | C35: 小学 | D35: ="2022020823" -> 2022020823 | E35: 54.4 | F35: 44.6 | G35: 29 | H35: 128
A36: 101 | B36: 语文(城区1) | C36: 小学 | D36: ="2022021918" -> 2022021918 | E36: 51.6 | F36: 48.3 | G36: 28 | H36: 127.9
A37: 101 | B37: 语文(城区1) | C37: 小学 | D37: ="2022022230" -> 2022022230 | E37: 57.8 | F37: 39.9 | G37: 30 | H37: 127.7
A38: 101 | B38: 语文(城区1) | C38: 小学 | D38: ="2022021913" -> 2022021913 | E38: 59.4 | F38: 38.2 | G38: 30 | H38: 127.6
A39: 101 | B39: 语文(城区1) | C39: 小学 | D39: ="2022020523" -> 2022020523 | E39: 57.5 | F39: 41.7 | G39: 28 | H39: 127.2
A40: 101 | B40: 语文(城区1) | C40: 小学 | D40: ="2022023015" -> 2022023015 | E40: 53.3 | F40: 43.2 | G40: 30 | H40: 126.5
A41: 101 | B41: 语文(城区1) | C41: 小学 | D41: ="2022024026" -> 2022024026 | E41: 58.1 | F41: 40.1 | G41: 28 | H41: 126.2
A42: 101 | B42: 语文(城区1) | C42: 小学 | D42: ="2022021901" -> 2022021901 | E42: 56.1 | F42: 42 | G42: 28 | H42: 126.1
A43: 101 | B43: 语文(城区1) | C43: 小学 | D43: ="2022024310" -> 2022024310 | E43: 50 | F43: 46.9 | G43: 29 | H43: 125.9
A44: 101 | B44: 语文(城区1) | C44: 小学 | D44: ="2022022428" -> 2022022428 | E44: 50.6 | F44: 45.1 | G44: 30 | H44: 125.7
A45: 101 | B45: 语文(城区1) | C45: 小学 | D45: ="2022021315" -> 2022021315 | E45: 63.5 | F45: 35.1 | G45: 27 | H45: 125.6
A46: 101 | B46: 语文(城区1) | C46: 小学 | D46: ="2022023316" -> 2022023316 | E46: 59.6 | F46: 35.9 | G46: 30 | H46: 125.5
A47: 101 | B47: 语文(城区1) | C47: 小学 | D47: ="2022021429" -> 2022021429 | E47: 49 | F47: 46.2 | G47: 30 | H47: 125.2
A48: 101 | B48: 语文(城区1) | C48: 小学 | D48: ="2022021005" -> 2022021005 | E48: 56.2 | F48: 38.8 | G48: 30 | H48: 125
A49: 101 | B49: 语文(城区1) | C49: 小学 | D49: ="2022023605" -> 2022023605 | E49: 65.8 | F49: 31.1 | G49: 28 | H49: 124.9
A50: 101 | B50: 语文(城区1) | C50: 小学 | D50: ="2022023007" -> 2022023007 | E50: 59.5 | F50: 35.2 | G50: 30 | H50: 124.7
A51: 101 | B51: 语文(城区1) | C51: 小学 | D51: ="2022023226" -> 2022023226 | E51: 54.8 | F51: 40.9 | G51: 29 | H51: 124.7
A52: 101 | B52: 语文(城区1) | C52: 小学 | D52: ="2022024018" -> 2022024018 | E52: 59.5 | F52: 38.1 | G52: 27 | H52: 124.6
A53: 101 | B53: 语文(城区1) | C53: 小学 | D53: ="2022022929" -> 2022022929 | E53: 58.1 | F53: 36.4 | G53: 30 | H53: 124.5
A54: 101 | B54: 语文(城区1) | C54: 小学 | D54: ="2022020828" -> 2022020828 | E54: 50.3 | F54: 43.8 | G54: 30 | H54: 124.1
A55: 101 | B55: 语文(城区1) | C55: 小学 | D55: ="2022023208" -> 2022023208 | E55: 53.3 | F55: 40.4 | G55: 30 | H55: 123.7
A56: 101 | B56: 语文(城区1) | C56: 小学 | D56: ="2022023726" -> 2022023726 | E56: 53.8 | F56: 40.9 | G56: 29 | H56: 123.7
A57: 101 | B57: 语文(城区1) | C57: 小学 | D57: ="2022020228" -> 2022020228 | E57: 51.6 | F57: 41.8 | G57: 30 | H57: 123.4
A58: 101 | B58: 语文(城区1) | C58: 小学 | D58: ="2022020323" -> 2022020323 | E58: 56.3 | F58: 36.9 | G58: 30 | H58: 123.2
A59: 101 | B59: 语文(城区1) | C59: 小学 | D59: ="2022020311" -> 2022020311 | E59: 53.4 | F59: 39.7 | G59: 30 | H59: 123.1
A60: 101 | B60: 语文(城区1) | C60: 小学 | D60: ="2022021921" -> 2022021921 | E60: 52.7 | F60: 41.4 | G60: 29 | H60: 123.1
A61: 101 | B61: 语文(城区1) | C61: 小学 | D61: ="2022021922" -> 2022021922 | E61: 55.2 | F61: 40.9 | G61: 27 | H61: 123.1
A62: 101 | B62: 语文(城区1) | C62: 小学 | D62: ="2022021323" -> 2022021323 | E62: 51 | F62: 42 | G62: 30 | H62: 123
A63: 101 | B63: 语文(城区1) | C63: 小学 | D63: ="2022023616" -> 2022023616 | E63: 54.8 | F63: 38.1 | G63: 30 | H63: 122.9
A64: 101 | B64: 语文(城区1) | C64: 小学 | D64: ="2022024301" -> 2022024301 | E64: 70.1 | F64: 26.8 | G64: 26 | H64: 122.9
A65: 101 | B65: 语文(城区1) | C65: 小学 | D65: ="2022022721" -> 2022022721 | E65: 59.4 | F65: 33.4 | G65: 30 | H65: 122.8
A66: 101 | B66: 语文(城区1) | C66: 小学 | D66: ="2022022101" -> 2022022101 | E66: 50.1 | F66: 43.6 | G66: 29 | H66: 122.7
A67: ="101" -> 101 | B67: 语文(城区1) | C67: 小学 | D67: ="2022023002" -> 2022023002 | E67: 53.1 | F67: 39.2 | G67: 30 | H67: =E67+F67+G67 -> 122.3
A68: 101 | B68: 语文(城区1) | C68: 小学 | D68: ="2022023805" -> 2022023805 | E68: 56.2 | F68: 36.7 | G68: 29 | H68: 121.9
A69: 101 | B69: 语文(城区1) | C69: 小学 | D69: ="2022023412" -> 2022023412 | E69: 54.6 | F69: 37 | G69: 30 | H69: 121.6
A70: 101 | B70: 语文(城区1) | C70: 小学 | D70: ="2022022518" -> 2022022518 | E70: 56 | F70: 36.4 | G70: 29 | H70: 121.4
A71: 101 | B71: 语文(城区1) | C71: 小学 | D71: ="2022020606" -> 2022020606 | E71: 50.1 | F71: 42 | G71: 29 | H71: 121.1
A72: 101 | B72: 语文(城区1) | C72: 小学 | D72: ="2022023329" -> 2022023329 | E72: 51.7 | F72: 38.7 | G72: 30 | H72: 120.4
A73: 101 | B73: 语文(城区1) | C73: 小学 | D73: ="2022024027" -> 2022024027 | E73: 56.1 | F73: 35.3 | G73: 29 | H73: 120.4
A74: 101 | B74: 语文(城区1) | C74: 小学 | D74: ="2022021102" -> 2022021102 | E74: 59.4 | F74: 34.9 | G74: 26 | H74: 120.3
A75: 101 | B75: 语文(城区1) | C75: 小学 | D75: ="2022020616" -> 2022020616 | E75: 56.3 | F75: 33.9 | G75: 30 | H75: 120.2
A76: 101 | B76: 语文(城区1) | C76: 小学 | D76: ="2022022121" -> 2022022121 | E76: 51.8 | F76: 40.4 | G76: 28 | H76: 120.2
A77: 101 | B77: 语文(城区1) | C77: 小学 | D77: ="2022020928" -> 2022020928 | E77: 57.7 | F77: 33.4 | G77: 29 | H77: 120.1
A78: 101 | B78: 语文(城区1) | C78: 小学 | D78: ="2022023720" -> 2022023720 | E78: 53.4 | F78: 37.7 | G78: 29 | H78: 120.1
A79: 101 | B79: 语文(城区1) | C79: 小学 | D79: ="2022023307" -> 2022023307 | E79: 48.5 | F79: 40.9 | G79: 30 | H79: 119.4
A80: 101 | B80: 语文(城区1) | C80: 小学 | D80: ="2022021521" -> 2022021521 | E80: 56.4 | F80: 32.8 | G80: 30 | H80: 119.2
A81: 101 | B81: 语文(城区1) | C81: 小学 | D81: ="2022021210" -> 2022021210 | E81: 51.5 | F81: 37.6 | G81: 30 | H81: 119.1
A82: 101 | B82: 语文(城区1) | C82: 小学 | D82: ="2022020628" -> 2022020628 | E82: 45 | F82: 42.9 | G82: 30 | H82: 117.9
A83: 101 | B83: 语文(城区1) | C83: 小学 | D83: ="2022022501" -> 2022022501 | E83: 51.5 | F83: 37 | G83: 29 | H83: 117.5
A84: 101 | B84: 语文(城区1) | C84: 小学 | D84: ="2022023019" -> 2022023019 | E84: 53.8 | F84: 33.2 | G84: 30 | H84: 117
A85: 101 | B85: 语文(城区1) | C85: 小学 | D85: ="2022021306" -> 2022021306 | E85: 57.5 | F85: 33.4 | G85: 26 | H85: 116.9
A86: 101 | B86: 语文(城区1) | C86: 小学 | D86: ="2022023723" -> 2022023723 | E86: 56.8 | F86: 30 | G86: 30 | H86: 116.8
A87: 101 | B87: 语文(城区1) | C87: 小学 | D87: ="2022021125" -> 2022021125 | E87: 51.8 | F87: 35.9 | G87: 29 | H87: 116.7
A88: 101 | B88: 语文(城区1) | C88: 小学 | D88: ="2022021122" -> 2022021122 | E88: 48.5 | F88: 38.1 | G88: 30 | H88: 116.6
A89: 101 | B89: 语文(城区1) | C89: 小学 | D89: ="2022023523" -> 2022023523 | E89: 51.8 | F89: 35.5 | G89: 29 | H89: 116.3
A90: 101 | B90: 语文(城区1) | C90: 小学 | D90: ="2022022229" -> 2022022229 | E90: 55.1 | F90: 33.1 | G90: 28 | H90: 116.2
A91: 101 | B91: 语文(城区1) | C91: 小学 | D91: ="2022023115" -> 2022023115 | E91: 53.9 | F91: 33.7 | G91: 28 | H91: 115.6
A92: 101 | B92: 语文(城区1) | C92: 小学 | D92: ="2022023324" -> 2022023324 | E92: 46.9 | F92: 39.3 | G92: 29 | H92: 115.2
A93: 101 | B93: 语文(城区1) | C93: 小学 | D93: ="2022022613" -> 2022022613 | E93: 56.5 | F93: 28.3 | G93: 30 | H93: 114.8
A94: 101 | B94: 语文(城区1) | C94: 小学 | D94: ="2022023318" -> 2022023318 | E94: 57.8 | F94: 29 | G94: 28 | H94: 114.8
A95: 101 | B95: 语文(城区1) | C95: 小学 | D95: ="2022020210" -> 2022020210 | E95: 50.6 | F95: 34.9 | G95: 29 | H95: 114.5
A96: 101 | B96: 语文(城区1) | C96: 小学 | D96: ="2022023217" -> 2022023217 | E96: 52.8 | F96: 34.2 | G96: 27 | H96: 114
A97: 101 | B97: 语文(城区1) | C97: 小学 | D97: ="2022021119" -> 2022021119 | E97: 54.8 | F97: 34.2 | G97: 24 | H97: 113
A98: 101 | B98: 语文(城区1) | C98: 小学 | D98: ="2022023803" -> 2022023803 | E98: 49.9 | F98: 34.8 | G98: 28 | H98: 112.7
A99: ="101" -> 101 | B99: 语文(城区1) | C99: 小学 | D99: ="2022022106" -> 2022022106 | E99: 48.8 | F99: 35.6 | G99: 28 | H99: 112.4
A100: 101 | B100: 语文(城区1) | C100: 小学 | D100: ="2022023506" -> 2022023506 | E100: 52.9 | F100: 32.3 | G100: 27 | H100: 112.2
A101: 101 | B101: 语文(城区1) | C101: 小学 | D101: ="2022020112" -> 2022020112 | E101: 56.1 | F101: 29.5 | G101: 26 | H101: 111.6
A102: 101 | B102: 语文(城区1) | C102: 小学 | D102: ="2022021115" -> 2022021115 | E102: 52.4 | F102: 34.2 | G102: 25 | H102: 111.6
A103: 101 | B103: 语文(城区1) | C103: 小学 | D103: ="2022024028" -> 2022024028 | E103: 56.1 | F103: 26.9 | G103: 28 | H103: 111
A104: 101 | B104: 语文(城区1) | C104: 小学 | D104: ="2022022903" -> 2022022903 | E104: 51.8 | F104: 29 | G104: 30 | H104: 110.8
A105: 101 | B105: 语文(城区1) | C105: 小学 | D105: ="2022021223" -> 2022021223 | E105: 42.8 | F105: 37.8 | G105: 30 | H105: 110.6
A106: 101 | B106: 语文(城区1) | C106: 小学 | D106: ="2022022618" -> 2022022618 | E106: 55.2 | F106: 29.1 | G106: 26 | H106: 110.3
A107: 101 | B107: 语文(城区1) | C107: 小学 | D107: ="2022021218" -> 2022021218 | E107: 58 | F107: 27.8 | G107: 24 | H107: 109.8
A108: 101 | B108: 语文(城区1) | C108: 小学 | D108: ="2022022901" -> 2022022901 | E108: 43.3 | F108: 36.2 | G108: 30 | H108: 109.5
A109: 101 | B109: 语文(城区1) | C109: 小学 | D109: ="2022021827" -> 2022021827 | E109: 47.4 | F109: 36 | G109: 26 | H109: 109.4
A110: 101 | B110: 语文(城区1) | C110: 小学 | D110: ="2022020924" -> 2022020924 | E110: 43.9 | F110: 38 | G110: 27 | H110: 108.9
A111: 101 | B111: 语文(城区1) | C111: 小学 | D111: ="2022022917" -> 2022022917 | E111: 51.5 | F111: 29 | G111: 28 | H111: 108.5
A112: 101 | B112: 语文(城区1) | C112: 小学 | D112: ="2022020318" -> 2022020318 | E112: 51.9 | F112: 29 | G112: 27 | H112: 107.9
A113: 101 | B113: 语文(城区1) | C113: 小学 | D113: ="2022024303" -> 2022024303 | E113: 44.1 | F113: 34.8 | G113: 28 | H113: 106.9
A114: 101 | B114: 语文(城区1) | C114: 小学 | D114: ="2022020630" -> 2022020630 | E114: 48.7 | F114: 30.7 | G114: 27 | H114: 106.4
A115: 101 | B115: 语文(城区1) | C115: 小学 | D115: ="2022023822" -> 2022023822 | E115: 46.1 | F115: 32.2 | G115: 28 | H115: 106.3
A116: 101 | B116: 语文(城区1) | C116: 小学 | D116: ="2022020627" -> 2022020627 | E116: 51.2 | F116: 32.3 | G116: 22 | H116: 105.5
A117: 101 | B117: 语文(城区1) | C117: 小学 | D117: ="2022023816" -> 2022023816 | E117: 50.4 | F117: 29 | G117: 26 | H117: 105.4
A118: 101 | B118: 语文(城区1) | C118: 小学 | D118: ="2022022004" -> 2022022004 | E118: 49.1 | F118: 33.8 | G118: 22 | H118: 104.9
A119: 101 | B119: 语文(城区1) | C119: 小学 | D119: ="2022021726" -> 2022021726 | E119: 55 | F119: 24.6 | G119: 25 | H119: 104.6
A120: 101 | B120: 语文(城区1) | C120: 小学 | D120: ="2022021915" -> 2022021915 | E120: 44.3 | F120: 33.3 | G120: 27 | H120: 104.6
A121: 101 | B121: 语文(城区1) | C121: 小学 | D121: ="2022020212" -> 2022020212 | E121: 53.5 | F121: 24 | G121: 27 | H121: 104.5
A122: 101 | B122: 语文(城区1) | C122: 小学 | D122: ="2022021307" -> 2022021307 | E122: 47.8 | F122: 32.2 | G122: 24 | H122: 104
A123: 101 | B123: 语文(城区1) | C123: 小学 | D123: ="2022022407" -> 2022022407 | E123: 42.8 | F123: 32 | G123: 29 | H123: 103.8
A124: 101 | B124: 语文(城区1) | C124: 小学 | D124: ="2022024306" -> 2022024306 | E124: 60.5 | F124: 23.3 | G124: 20 | H124: 103.8
A125: 101 | B125: 语文(城区1) | C125: 小学 | D125: ="2022023211" -> 2022023211 | E125: 50.4 | F125: 25.3 | G125: 28 | H125: 103.7
A126: 101 | B126: 语文(城区1) | C126: 小学 | D126: ="2022022707" -> 2022022707 | E126: 49.1 | F126: 25.4 | G126: 29 | H126: 103.5
A127: 101 | B127: 语文(城区1) | C127: 小学 | D127: ="2022023503" -> 2022023503 | E127: 51 | F127: 29.1 | G127: 23 | H127: 103.1
A128: 101 | B128: 语文(城区1) | C128: 小学 | D128: ="2022024017" -> 2022024017 | E128: 43.2 | F128: 29.3 | G128: 29 | H128: 101.5
A129: 101 | B129: 语文(城区1) | C129: 小学 | D129: ="2022022317" -> 2022022317 | E129: 41 | F129: 34.4 | G129: 26 | H129: 101.4
A130: 101 | B130: 语文(城区1) | C130: 小学 | D130: ="2022022129" -> 2022022129 | E130: 50.7 | F130: 23.4 | G130: 26 | H130: 100.1
A131: ="101" -> 101 | B131: 语文(城区1) | C131: 小学 | D131: ="2022020128" -> 2022020128 | E131: 42.7 | F131: 26.4 | G131: 30 | H131: =E131+F131+G131 -> 99.1
A132: 101 | B132: 语文(城区1) | C132: 小学 | D132: ="2022023807" -> 2022023807 | E132: 47.4 | F132: 23.8 | G132: 27 | H132: 98.2
A133: 101 | B133: 语文(城区1) | C133: 小学 | D133: ="2022024314" -> 2022024314 | E133: 44.6 | F133: 26.4 | G133: 27 | H133: 98
A134: 101 | B134: 语文(城区1) | C134: 小学 | D134: ="2022022723" -> 2022022723 | E134: 42.7 | F134: 25.7 | G134: 27 | H134: 95.4
A135: 101 | B135: 语文(城区1) | C135: 小学 | D135: ="2022022017" -> 2022022017 | E135: 48.7 | F135: 32.9 | G135: 12 | H135: 93.6
A136: 101 | B136: 语文(城区1) | C136: 小学 | D136: ="2022023602" -> 2022023602 | E136: 46.8 | F136: 23.8 | G136: 23 | H136: 93.6
A137: 101 | B137: 语文(城区1) | C137: 小学 | D137: ="2022021601" -> 2022021601 | E137: 47.9 | F137: 20.4 | G137: 25 | H137: 93.3
A138: 101 | B138: 语文(城区1) | C138: 小学 | D138: ="2022023219" -> 2022023219 | E138: 41.2 | F138: 27.4 | G138: 24 | H138: 92.6
A139: 101 | B139: 语文(城区1) | C139: 小学 | D139: ="2022024101" -> 2022024101 | E139: 42.3 | F139: 24.2 | G139: 24 | H139: 90.5
A140: 101 | B140: 语文(城区1) | C140: 小学 | D140: ="2022021617" -> 2022021617 | E140: 32.7 | F140: 26 | G140: 25 | H140: 83.7
A141: 101 | B141: 语文(城区1) | C141: 小学 | D141: ="2022020103" -> 2022020103 | E141: 0 | F141: 0 | G141: 0 | H141: 0
A142: 101 | B142: 语文(城区1) | C142: 小学 | D142: ="2022020129" -> 2022020129 | E142: 0 | F142: 0 | G142: 0 | H142: 0
A143: 101 | B143: 语文(城区1) | C143: 小学 | D143: ="2022020409" -> 2022020409 | E143: 0 | F143: 0 | G143: 0 | H143: 0
A144: 101 | B144: 语文(城区1) | C144: 小学 | D144: ="2022020705" -> 2022020705 | E144: 0 | F144: 0 | G144: 0 | H144: 0
A145: 101 | B145: 语文(城区1) | C145: 小学 | D145: ="2022020718" -> 2022020718 | E145: 0 | F145: 0 | G145: 0 | H145: 0
A146: 101 | B146: 语文(城区1) | C146: 小学 | D146: ="2022020817" -> 2022020817 | E146: 0 | F146: 0 | G146: 0 | H146: 0
A147: 101 | B147: 语文(城区1) | C147: 小学 | D147: ="2022020827" -> 2022020827 | E147: 0 | F147: 0 | G147: 0 | H147: 0
A148: 101 | B148: 语文(城区1) | C148: 小学 | D148: ="2022020906" -> 2022020906 | E148: 0 | F148: 0 | G148: 0 | H148: 0
A149: 101 | B149: 语文(城区1) | C149: 小学 | D149: ="2022020910" -> 2022020910 | E149: 0 | F149: 0 | G149: 0 | H149: 0
A150: 101 | B150: 语文(城区1) | C150: 小学 | D150: ="2022020917" -> 2022020917 | E150: 0 | F150: 0 | G150: 0 | H150: 0
A151: 101 | B151: 语文(城区1) | C151: 小学 | D151: ="2022021130" -> 2022021130 | E151: 0 | F151: 0 | G151: 0 | H151: 0
A152: 101 | B152: 语文(城区1) | C152: 小学 | D152: ="2022021201" -> 2022021201 | E152: 0 | F152: 0 | G152: 0 | H152: 0
A153: 101 | B153: 语文(城区1) | C153: 小学 | D153: ="2022021325" -> 2022021325 | E153: 0 | F153: 0 | G153: 0 | H153: 0
A154: 101 | B154: 语文(城区1) | C154: 小学 | D154: ="2022021330" -> 2022021330 | E154: 0 | F154: 0 | G154: 0 | H154: 0
A155: 101 | B155: 语文(城区1) | C155: 小学 | D155: ="2022021415" -> 2022021415 | E155: 0 | F155: 0 | G155: 0 | H155: 0
A156: 101 | B156: 语文(城区1) | C156: 小学 | D156: ="2022021620" -> 2022021620 | E156: 0 | F156: 0 | G156: 0 | H156: 0
A157: 101 | B157: 语文(城区1) | C157: 小学 | D157: ="2022021630" -> 2022021630 | E157: 0 | F157: 0 | G157: 0 | H157: 0
A158: 101 | B158: 语文(城区1) | C158: 小学 | D158: ="2022021806" -> 2022021806 | E158: 0 | F158: 0 | G158: 0 | H158: 0
A159: 101 | B159: 语文(城区1) | C159: 小学 | D159: ="2022021811" -> 2022021811 | E159: 0 | F159: 0 | G159: 0 | H159: 0
A160: 101 | B160: 语文(城区1) | C160: 小学 | D160: ="2022021902" -> 2022021902 | E160: 0 | F160: 0 | G160: 0 | H160: 0
A161: 101 | B161: 语文(城区1) | C161: 小学 | D161: ="2022021928" -> 2022021928 | E161: 0 | F161: 0 | G161: 0 | H161: 0
A162: 101 | B162: 语文(城区1) | C162: 小学 | D162: ="2022021930" -> 2022021930 | E162: 0 | F162: 0 | G162: 0 | H162: 0
A163: ="101" -> 101 | B163: 语文(城区1) | C163: 小学 | D163: ="2022022025" -> 2022022025 | E163: 0 | F163: 0 | G163: 0 | H163: 0
A164: 101 | B164: 语文(城区1) | C164: 小学 | D164: ="2022022103" -> 2022022103 | E164: 0 | F164: 0 | G164: 0 | H164: 0
A165: 101 | B165: 语文(城区1) | C165: 小学 | D165: ="2022022104" -> 2022022104 | E165: 0 | F165: 0 | G165: 0 | H165: 0
A166: 101 | B166: 语文(城区1) | C166: 小学 | D166: ="2022022225" -> 2022022225 | E166: 0 | F166: 0 | G166: 0 | H166: 0
A167: 101 | B167: 语文(城区1) | C167: 小学 | D167: ="2022022322" -> 2022022322 | E167: 0 | F167: 0 | G167: 0 | H167: 0
A168: 101 | B168: 语文(城区1) | C168: 小学 | D168: ="2022022417" -> 2022022417 | E168: 0 | F168: 0 | G168: 0 | H168: 0
A169: 101 | B169: 语文(城区1) | C169: 小学 | D169: ="2022022418" -> 2022022418 | E169: 0 | F169: 0 | G169: 0 | H169: 0
A170: 101 | B170: 语文(城区1) | C170: 小学 | D170: ="2022022503" -> 2022022503 | E170: 0 | F170: 0 | G170: 0 | H170: 0
A171: 101 | B171: 语文(城区1) | C171: 小学 | D171: ="2022022519" -> 2022022519 | E171: 0 | F171: 0 | G171: 0 | H171: 0
A172: 101 | B172: 语文(城区1) | C172: 小学 | D172: ="2022022604" -> 2022022604 | E172: 0 | F172: 0 | G172: 0 | H172: 0
A173: 101 | B173: 语文(城区1) | C173: 小学 | D173: ="2022022614" -> 2022022614 | E173: 0 | F173: 0 | G173: 0 | H173: 0
A174: 101 | B174: 语文(城区1) | C174: 小学 | D174: ="2022022617" -> 2022022617 | E174: 0 | F174: 0 | G174: 0 | H174: 0
A175: 101 | B175: 语文(城区1) | C175: 小学 | D175: ="2022022712" -> 2022022712 | E175: 0 | F175: 0 | G175: 0 | H175: 0
A176: 101 | B176: 语文(城区1) | C176: 小学 | D176: ="2022022720" -> 2022022720 | E176: 0 | F176: 0 | G176: 0 | H176: 0
A177: 101 | B177: 语文(城区1) | C177: 小学 | D177: ="2022022801" -> 2022022801 | E177: 0 | F177: 0 | G177: 0 | H177: 0
A178: 101 | B178: 语文(城区1) | C178: 小学 | D178: ="2022022807" -> 2022022807 | E178: 0 | F178: 0 | G178: 0 | H178: 0
A179: 101 | B179: 语文(城区1) | C179: 小学 | D179: ="2022022813" -> 2022022813 | E179: 0 | F179: 0 | G179: 0 | H179: 0
A180: 101 | B180: 语文(城区1) | C180: 小学 | D180: ="2022022822" -> 2022022822 | E180: 0 | F180: 0 | G180: 0 | H180: 0
A181: 101 | B181: 语文(城区1) | C181: 小学 | D181: ="2022023006" -> 2022023006 | E181: 0 | F181: 0 | G181: 0 | H181: 0
A182: 101 | B182: 语文(城区1) | C182: 小学 | D182: ="2022023105" -> 2022023105 | E182: 0 | F182: 0 | G182: 0 | H182: 0
A183: 101 | B183: 语文(城区1) | C183: 小学 | D183: ="2022023119" -> 2022023119 | E183: 0 | F183: 0 | G183: 0 | H183: 0
A184: 101 | B184: 语文(城区1) | C184: 小学 | D184: ="2022023122" -> 2022023122 | E184: 0 | F184: 0 | G184: 0 | H184: 0
A185: 101 | B185: 语文(城区1) | C185: 小学 | D185: ="2022023206" -> 2022023206 | E185: 0 | F185: 0 | G185: 0 | H185: 0
A186: 101 | B186: 语文(城区1) | C186: 小学 | D186: ="2022023207" -> 2022023207 | E186: 0 | F186: 0 | G186: 0 | H186: 0
A187: 101 | B187: 语文(城区1) | C187: 小学 | D187: ="2022023209" -> 2022023209 | E187: 0 | F187: 0 | G187: 0 | H187: 0
A188: 101 | B188: 语文(城区1) | C188: 小学 | D188: ="2022023218" -> 2022023218 | E188: 0 | F188: 0 | G188: 0 | H188: 0
A189: 101 | B189: 语文(城区1) | C189: 小学 | D189: ="2022023413" -> 2022023413 | E189: 0 | F189: 0 | G189: 0 | H189: 0
A190: 101 | B190: 语文(城区1) | C190: 小学 | D190: ="2022023509" -> 2022023509 | E190: 0 | F190: 0 | G190: 0 | H190: 0
A191: 101 | B191: 语文(城区1) | C191: 小学 | D191: ="2022023530" -> 2022023530 | E191: 0 | F191: 0 | G191: 0 | H191: 0
A192: 101 | B192: 语文(城区1) | C192: 小学 | D192: ="2022023704" -> 2022023704 | E192: 0 | F192: 0 | G192: 0 | H192: 0
A193: 101 | B193: 语文(城区1) | C193: 小学 | D193: ="2022023706" -> 2022023706 | E193: 0 | F193: 0 | G193: 0 | H193: 0
A194: 101 | B194: 语文(城区1) | C194: 小学 | D194: ="2022023823" -> 2022023823 | E194: 0 | F194: 0 | G194: 0 | H194: 0
A195: ="101" -> 101 | B195: 语文(城区1) | C195: 小学 | D195: ="2022023911" -> 2022023911 | E195: 0 | F195: 0 | G195: 0 | H195: =E195+F195+G195 -> 0
A196: 101 | B196: 语文(城区1) | C196: 小学 | D196: ="2022024013" -> 2022024013 | E196: 0 | F196: 0 | G196: 0 | H196: 0
A197: 101 | B197: 语文(城区1) | C197: 小学 | D197: ="2022024020" -> 2022024020 | E197: 0 | F197: 0 | G197: 0 | H197: 0
A198: 101 | B198: 语文(城区1) | C198: 小学 | D198: ="2022024021" -> 2022024021 | E198: 0 | F198: 0 | G198: 0 | H198: 0
A199: 101 | B199: 语文(城区1) | C199: 小学 | D199: ="2022024325" -> 2022024325 | E199: 0 | F199: 0 | G199: 0 | H199: 0
A200: 101 | B200: 语文(城区1) | C200: 小学 | D200: ="2022024329" -> 2022024329 | E200: 0 | F200: 0 | G200: 0 | H200: 0
... 1095 more rows

Sheet Sheet2

Sheet Sheet3
